Workbook

Sheet model MŠ
A1: Porovnání výše prostředků přidělených prostřednictvím oborového normativu a doplňkové částky s výší prostředků přidělovaných podle krajských normativů 2012 pro MŠ (bez příplatků na postižení) | P1: jednotřídní MŠ - ON1 | R1: 28000 | V1: Krok 1: vepiš novou hodnotu ON nebo doplňkové částky
P2: vícetřídní MŠ - ON2 | R2: 27000
P3: doplňková částka | R3: 130000 | V3: Krok 2:klikni na tlačítko
N4: celkem | O4: =SUM(O7:O5920) -> 1.014200625e+10 | R4: =SUM(R7:R5920) -> 10135708500 | S4: =SUM(S7:S5920) -> -6297747.49 | T4: =S4/R4 -> -0.0006213426017
A5: Škola | N5: Krajské normativy 2012 | P5: Nový systém (vč.odvodů) | S5: Porovnání
A6: ZRIZ | B6: NVUSC | D6: IZO | E6: RED IZO | F6: Název zřizovatele | G6: celkem žáků | H6: celodenní | I6: polodenní | J6: internátní | K6: počet tříd | L6: z toho speciálních | M6: počet žáků na třídu | N6: MP pedagogové | O6: Celkem na IZO (vč.odvodů) | P6: Oborový normativ | Q6: Doplňková částka | R6: Celkem na IZO | S6: Rozdíl na IZO | T6: Rozdíl na IZO v % | W6: počet škol, odloučených pracovišť | X6: v %
A7: 7 | B7: CZ064 | C7: Jihomoravský | D7: 171103670 | E7: 610251121 | F7: KÚ Jihomoravského kraje | G7: 4 | H7: 0 | I7: 4 | J7: 0 | K7: 1 | L7: 1 | M7: 4 | N7: 28473 | O7: 76877.1 | P7: 28000 | Q7: 74285.71429 | R7: 130285.7143 | S7: 53408.61429 | T7: 40.99345395 | V7: nárůst o 15% a více | W7: =COUNTIFS( $T$7:$T$5920,">=15" ) -> 13 | X7: =100*W7/5914 -> 0.2198173825
A8: 7 | B8: CZ064 | C8: Jihomoravský | D8: 171104684 | E8: 600025519 | F8: KÚ Jihomoravského kraje | G8: 4 | H8: 4 | I8: 0 | J8: 0 | K8: 1 | L8: 1 | M8: 4 | N8: 28473 | O8: 153754.2 | P8: 28000 | Q8: 74285.71429 | R8: 186285.7143 | S8: 32531.51429 | T8: 17.4632362 | V8: nárůst o 10 až 14,99% | W8: =COUNTIFS( $T$7:$T$5920,">=10",$T$7:$T$5920,"<15") -> 279 | X8: =100*W8/5914 -> 4.717619209
A9: 7 | B9: CZ080 | C9: Moravskoslezský | D9: 150077939 | E9: 610500732 | F9: KÚ Moravskoslezského kr. | G9: 6 | H9: 6 | I9: 0 | J9: 0 | K9: 1 | L9: 1 | M9: 6 | N9: 30306 | O9: 245478.6 | P9: 28000 | Q9: 111428.5714 | R9: 279428.5714 | S9: 33949.97143 | T9: 12.14978528 | V9: nárůst o 5 až 9,99% | W9: =COUNTIFS( $T$7:$T$5920,">=5",$T$7:$T$5920,"<10") -> 1038 | X9: 17.55157254
A10: 2 | B10: CZ041 | C10: Karlovarský | D10: 181003147 | E10: 600072908 | F10: Rovná | G10: 7 | H10: 7 | I10: 0 | J10: 0 | K10: 1 | L10: 0 | M10: 7 | N10: 28414.37632 | O10: 268515.8562 | P10: 28000 | Q10: 70000 | R10: 266000 | S10: -2515.856237 | T10: -0.9458106153 | V10: nárůst o 3 až 4,99% | W10: =COUNTIFS( $T$7:$T$5920,">=3",$T$7:$T$5920,"<5") -> 386 | X10: 6.526885357
A11: 7 | B11: CZ064 | C11: Jihomoravský | D11: 130005657 | E11: 610251121 | F11: KÚ Jihomoravského kraje | G11: 7 | H11: 7 | I11: 0 | J11: 0 | K11: 1 | L11: 1 | M11: 7 | N11: 28473 | O11: 269069.85 | P11: 28000 | Q11: 130000 | R11: 326000 | S11: 56930.15 | T11: 17.4632362 | V11: nárůst o 1 až 2,99% | W11: =COUNTIFS( $T$7:$T$5920,">=1",$T$7:$T$5920,"<3") -> 900 | X11: 15.21812648
A12: 2 | B12: CZ020 | C12: Středočeský | D12: 181032899 | E12: 600054781 | F12: Věšín | G12: 8 | H12: 8 | I12: 0 | J12: 0 | K12: 1 | L12: 0 | M12: 8 | N12: 32376.47059 | O12: 349665.8824 | P12: 28000 | Q12: 80000 | R12: 304000 | S12: -45665.88235 | T12: -15.02167183 | V12: nárůst o 0,99% nebo pokles o 1% | W12: =COUNTIFS($T$7:$T$5920,">=-1",$T$7:$T$5920,"<1") -> 778 | X12: 13.15522489
A13: 2 | B13: CZ031 | C13: Jihočeský | D13: 107534657 | E13: 650053605 | F13: Stožec | G13: 8 | H13: 8 | I13: 0 | J13: 0 | K13: 1 | L13: 0 | M13: 8 | N13: 27194 | O13: 293695.2 | P13: 28000 | Q13: 80000 | R13: 304000 | S13: 10304.8 | T13: 3.389736842 | V13: pokles o 1,01 až 3% | W13: =COUNTIFS( $T$7:$T$5920,">=-3",$T$7:$T$5920,"<-1") -> 1047 | X13: 17.7037538
A14: 7 | B14: CZ071 | C14: Olomoucký | D14: 110551397 | E14: 610551353 | F14: KÚ Olomouckého kraje | G14: 8 | H14: 8 | I14: 0 | J14: 0 | K14: 1 | L14: 1 | M14: 8 | N14: 27754 | O14: 299743.2 | P14: 28000 | Q14: 130000 | R14: 354000 | S14: 54256.8 | T14: 15.32677966 | V14: pokles o 3,01 až 5% | W14: =COUNTIFS( $T$7:$T$5920,">=-5",$T$7:$T$5920,"<-3") -> 1081 | X14: 18.2786608
A15: 2 | B15: CZ052 | C15: Královéhradecký | D15: 107585651 | E15: 650047087 | F15: Deštné v Orlických horách | G15: 9 | H15: 9 | I15: 0 | J15: 0 | K15: 1 | L15: 0 | M15: 9 | N15: 27955.55556 | O15: 339660 | P15: 28000 | Q15: 90000 | R15: 342000 | S15: 2340 | T15: 0.6842105263 | V15: pokles o 5,01 až 10% | W15: =COUNTIFS($T$7:$T$5920,">=-10",$T$7:$T$5920,"<-5") -> 339 | X15: 5.732160974
A16: 2 | B16: CZ053 | C16: Pardubický | D16: 117500542 | E16: 600096645 | F16: Pardubice | G16: 9 | H16: 9 | I16: 0 | J16: 0 | K16: 1 | L16: 1 | M16: 9 | N16: 28298 | O16: 343820.7 | P16: 28000 | Q16: 130000 | R16: 382000 | S16: 38179.3 | T16: 9.994581152 | V16: pokles o 10,01 až 15% | W16: =COUNTIFS( $T$7:$T$5920,">=-15",$T$7:$T$5920,"<-10") -> 46 | X16: 0.7778153534
A17: 2 | B17: CZ080 | C17: Moravskoslezský | D17: 107621240 | E17: 600131092 | F17: Dívčí Hrad | G17: 9 | H17: 9 | I17: 0 | J17: 0 | K17: 1 | L17: 0 | M17: 9 | N17: 30306 | O17: 368217.9 | P17: 28000 | Q17: 90000 | R17: 342000 | S17: -26217.9 | T17: -7.666052632 | V17: pokles o více než 15% | W17: =COUNTIFS( $T$7:$T$5920,"<-15") -> 7 | X17: 0.118363206
A18: 7 | B18: CZ072 | C18: Zlínský | D18: 110022807 | E18: 600025608 | F18: KÚ Zlínského kraje | G18: 9 | H18: 0 | I18: 9 | J18: 0 | K18: 1 | L18: 1 | M18: 9 | N18: 26796 | O18: 162785.7 | P18: 28000 | Q18: 130000 | R18: 256000 | S18: 93214.3 | T18: 36.41183594 | V18: celkem škol, odloučených pracovišť | W18: =SUM(W7:W17) -> 5914 | X18: 100
A19: 2 | B19: CZ020 | C19: Středočeský | D19: 181033437 | E19: 600054659 | F19: Malá Hraštice | G19: 10 | H19: 10 | I19: 0 | J19: 0 | K19: 1 | L19: 0 | M19: 10 | N19: 32376.47059 | O19: 437082.3529 | P19: 28000 | Q19: 100000 | R19: 380000 | S19: -57082.35294 | T19: -15.02167183
A20: 2 | B20: CZ032 | C20: Plzeňský | D20: 181019884 | E20: 600070964 | F20: Zbůch | G20: 10 | H20: 0 | I20: 10 | J20: 0 | K20: 1 | L20: 0 | M20: 10 | N20: 31933 | O20: 215547.75 | P20: 28000 | Q20: 100000 | R20: 240000 | S20: 24452.25 | T20: 10.1884375 | V20: Počty škol podle počtu žáků | W20: počet škol, odloučených pracovišť | X20: v %
A21: 2 | B21: CZ042 | C21: Ústecký | D21: 181037718 | E21: 600081354 | F21: Malé Žernoseky | G21: 10 | H21: 10 | I21: 0 | J21: 0 | K21: 1 | L21: 0 | M21: 10 | N21: 27948 | O21: 377298 | P21: 28000 | Q21: 100000 | R21: 380000 | S21: 2702 | T21: 0.7110526316
A22: 2 | B22: CZ042 | C22: Ústecký | D22: 181039869 | E22: 600081541 | F22: Libotenice | G22: 10 | H22: 10 | I22: 0 | J22: 0 | K22: 1 | L22: 0 | M22: 10 | N22: 27948 | O22: 377298 | P22: 28000 | Q22: 100000 | R22: 380000 | S22: 2702 | T22: 0.7110526316
A23: 2 | B23: CZ052 | C23: Královéhradecký | D23: 117600571 | E23: 650031253 | F23: Albrechtice nad Orlicí | G23: 10 | H23: 0 | I23: 10 | J23: 0 | K23: 1 | L23: 0 | M23: 10 | N23: 27955.55556 | O23: 188700 | P23: 28000 | Q23: 100000 | R23: 240000 | S23: 51300 | T23: 21.375
A24: 2 | B24: CZ052 | C24: Královéhradecký | D24: 181039699 | E24: 600092216 | F24: Jičíněves | G24: 10 | H24: 10 | I24: 0 | J24: 0 | K24: 1 | L24: 0 | M24: 10 | N24: 27955.55556 | O24: 377400 | P24: 28000 | Q24: 100000 | R24: 380000 | S24: 2600 | T24: 0.6842105263
A25: 2 | B25: CZ063 | C25: Vysočina | D25: 107533375 | E25: 600061027 | F25: Rodinov | G25: 10 | H25: 10 | I25: 0 | J25: 0 | K25: 1 | L25: 0 | M25: 10 | N25: 25944 | O25: 350244 | P25: 28000 | Q25: 100000 | R25: 380000 | S25: 29756 | T25: 7.830526316 | V25: do 7 žáků | W25: =COUNTIFS( $G$7:$G$5920,"<=7" ) -> 5 | X25: =100*W25/1539 -> 0.3248862898
A26: 2 | B26: CZ064 | C26: Jihomoravský | D26: 107606801 | E26: 600115861 | F26: Blatnice pod Svatým Antonínkem | G26: 10 | H26: 10 | I26: 0 | J26: 0 | K26: 1 | L26: 0 | M26: 10 | N26: 28473 | O26: 384385.5 | P26: 28000 | Q26: 100000 | R26: 380000 | S26: -4385.5 | T26: -1.154078947 | V26: 8 až 13 žáků | W26: =COUNTIFS( $G$7:$G$5920,">=8",$G$7:$G$5920,"<=13") -> 62 | X26: =100*W26/1539 -> 4.028589994
A27: 2 | B27: CZ064 | C27: Jihomoravský | D27: 107614561 | E27: 600127508 | F27: Šumná | G27: 10 | H27: 10 | I27: 0 | J27: 0 | K27: 1 | L27: 0 | M27: 10 | N27: 28473 | O27: 384385.5 | P27: 28000 | Q27: 100000 | R27: 380000 | S27: -4385.5 | T27: -1.154078947 | V27: 14 až 24 žáků | W27: =COUNTIFS( $G$7:$G$5920,">=14",$G$7:$G$5920,"<=24") -> 906 | X27: 58.86939571
A28: 2 | B28: CZ080 | C28: Moravskoslezský | D28: 174104693 | E28: 600131971 | F28: Razová | G28: 10 | H28: 10 | I28: 0 | J28: 0 | K28: 1 | L28: 0 | M28: 10 | N28: 30306 | O28: 409131 | P28: 28000 | Q28: 100000 | R28: 380000 | S28: -29131 | T28: -7.666052632 | V28: 25 až 72 žáků | W28: =COUNTIFS( $G$7:$G$5920,">=25",$G$7:$G$5920,"<=72") -> 3099 | X28: 201.3645224
A29: 2 | B29: CZ080 | C29: Moravskoslezský | D29: 181036924 | E29: 600134385 | F29: Václavovice | G29: 10 | H29: 0 | I29: 10 | J29: 0 | K29: 1 | L29: 0 | M29: 10 | N29: 30306 | O29: 204565.5 | P29: 28000 | Q29: 100000 | R29: 240000 | S29: 35434.5 | T29: 14.764375 | V29: 73 až 120 žáků | W29: =COUNTIFS( $G$7:$G$5920,">=73",$G$7:$G$5920,"<=120") -> 1446 | X29: 93.95711501
A30: 7 | B30: CZ010 | C30: Praha | D30: 110011015 | E30: 600021050 | F30: Magistrát hl. m. Prahy | G30: 10 | H30: 10 | I30: 0 | J30: 0 | K30: 2 | L30: 2 | M30: 5 | N30: 26700 | O30: 360450 | P30: 27000 | Q30: 130000 | R30: 400000 | S30: 39550 | T30: 9.8875 | V30: 121 až 192 žáků | W30: =COUNTIFS( $G$7:$G$5920,">=121",$G$7:$G$5920,"<=192") -> 355 | X30: 23.06692658
A31: 2 | B31: CZ032 | C31: Plzeňský | D31: 107544881 | E31: 650014901 | F31: Chříč | G31: 11 | H31: 11 | I31: 0 | J31: 0 | K31: 1 | L31: 0 | M31: 11 | N31: 31933 | O31: 474205.05 | P31: 28000 | Q31: 110000 | R31: 418000 | S31: -56205.05 | T31: -13.44618421 | V31: 193 až 264 žáků | W31: =COUNTIFS( $G$7:$G$5920,">=193",$G$7:$G$5920,"<=264") -> 35 | X31: 2.274204029
A32: 2 | B32: CZ032 | C32: Plzeňský | D32: 107546523 | E32: 600073971 | F32: Lesná | G32: 11 | H32: 11 | I32: 0 | J32: 0 | K32: 1 | L32: 0 | M32: 11 | N32: 31933 | O32: 474205.05 | P32: 28000 | Q32: 110000 | R32: 418000 | S32: -56205.05 | T32: -13.44618421 | V32: 265 až 430 žáků | W32: =COUNTIFS( $G$7:$G$5920,">=265",$G$7:$G$5920,"<=430") -> 6 | X32: 0.3898635478
A33: 2 | B33: CZ042 | C33: Ústecký | D33: 181036908 | E33: 600081508 | F33: Třebenice | G33: 11 | H33: 11 | I33: 0 | J33: 0 | K33: 1 | L33: 0 | M33: 11 | N33: 27948 | O33: 415027.8 | P33: 28000 | Q33: 110000 | R33: 418000 | S33: 2972.2 | T33: 0.7110526316 | V33: celkem škol, odloučených pracovišť | W33: =SUM(W25:W32) -> 5914 | X33: =SUM(X25:X32) -> 384.2755036
A34: 2 | B34: CZ051 | C34: Liberecký | D34: 107560399 | E34: 600074722 | F34: Cvikov | G34: 11 | H34: 11 | I34: 0 | J34: 0 | K34: 1 | L34: 0 | M34: 11 | N34: 32894.43713 | O34: 488482.3914 | P34: 28000 | Q34: 110000 | R34: 418000 | S34: -70482.39144 | T34: -16.86181613
A35: 2 | B35: CZ052 | C35: Královéhradecký | D35: 107588200 | E35: 600102459 | F35: Malá Úpa | G35: 11 | H35: 11 | I35: 0 | J35: 0 | K35: 1 | L35: 0 | M35: 11 | N35: 27955.55556 | O35: 415140 | P35: 28000 | Q35: 110000 | R35: 418000 | S35: 2860 | T35: 0.6842105263
A36: 2 | B36: CZ052 | C36: Královéhradecký | D36: 181029995 | E36: 650060997 | F36: Voděrady | G36: 11 | H36: 11 | I36: 0 | J36: 0 | K36: 1 | L36: 0 | M36: 11 | N36: 27955.55556 | O36: 415140 | P36: 28000 | Q36: 110000 | R36: 418000 | S36: 2860 | T36: 0.6842105263
A37: 2 | B37: CZ071 | C37: Olomoucký | D37: 107610116 | E37: 600119726 | F37: Šubířov | G37: 11 | H37: 0 | I37: 11 | J37: 0 | K37: 1 | L37: 0 | M37: 11 | N37: 27754 | O37: 206073.45 | P37: 28000 | Q37: 110000 | R37: 264000 | S37: 57926.55 | T37: 21.941875
A38: 7 | B38: CZ051 | C38: Liberecký | D38: 110400712 | E38: 610400681 | F38: KÚ Libereckého kraje | G38: 11 | H38: 11 | I38: 0 | J38: 0 | K38: 1 | L38: 1 | M38: 11 | N38: 32894.43713 | O38: 488482.3914 | P38: 28000 | Q38: 130000 | R38: 438000 | S38: -50482.39144 | T38: -11.52566015
A39: 7 | B39: CZ052 | C39: Královéhradecký | D39: 102730288 | E39: 600024237 | F39: KÚ Královéhrad. kraje | G39: 11 | H39: 11 | I39: 0 | J39: 0 | K39: 1 | L39: 1 | M39: 11 | N39: 27955.55556 | O39: 415140 | P39: 28000 | Q39: 130000 | R39: 438000 | S39: 22860 | T39: 5.219178082
A40: 2 | B40: CZ020 | C40: Středočeský | D40: 181004178 | E40: 600053202 | F40: Kamenný Přívoz | G40: 12 | H40: 12 | I40: 0 | J40: 0 | K40: 1 | L40: 0 | M40: 12 | N40: 32376.47059 | O40: 524498.8235 | P40: 28000 | Q40: 120000 | R40: 456000 | S40: -68498.82353 | T40: -15.02167183
A41: 2 | B41: CZ031 | C41: Jihočeský | D41: 107534622 | E41: 650050941 | F41: Lenora | G41: 12 | H41: 12 | I41: 0 | J41: 0 | K41: 1 | L41: 0 | M41: 12 | N41: 27194 | O41: 440542.8 | P41: 28000 | Q41: 120000 | R41: 456000 | S41: 15457.2 | T41: 3.389736842
A42: 2 | B42: CZ032 | C42: Plzeňský | D42: 107544059 | E42: 600069915 | F42: Oplot | G42: 12 | H42: 12 | I42: 0 | J42: 0 | K42: 1 | L42: 0 | M42: 12 | N42: 31933 | O42: 517314.6 | P42: 28000 | Q42: 120000 | R42: 456000 | S42: -61314.6 | T42: -13.44618421
A43: 2 | B43: CZ051 | C43: Liberecký | D43: 107586622 | E43: 600098796 | F43: Paseky nad Jizerou | G43: 12 | H43: 12 | I43: 0 | J43: 0 | K43: 1 | L43: 0 | M43: 12 | N43: 32894.43713 | O43: 532889.8816 | P43: 28000 | Q43: 120000 | R43: 456000 | S43: -76889.88157 | T43: -16.86181613
A44: 2 | B44: CZ052 | C44: Královéhradecký | D44: 181026651 | E44: 650045866 | F44: Kvasiny | G44: 12 | H44: 12 | I44: 0 | J44: 0 | K44: 1 | L44: 0 | M44: 12 | N44: 27955.55556 | O44: 452880 | P44: 28000 | Q44: 120000 | R44: 456000 | S44: 3120 | T44: 0.6842105263
A45: 2 | B45: CZ053 | C45: Pardubický | D45: 007587414 | E45: 600099920 | F45: Trpín | G45: 12 | H45: 12 | I45: 0 | J45: 0 | K45: 1 | L45: 0 | M45: 12 | N45: 28298 | O45: 458427.6 | P45: 28000 | Q45: 120000 | R45: 456000 | S45: -2427.6 | T45: -0.5323684211
A46: 2 | B46: CZ053 | C46: Pardubický | D46: 130005258 | E46: 669000060 | F46: Banín | G46: 12 | H46: 12 | I46: 0 | J46: 0 | K46: 1 | L46: 0 | M46: 12 | N46: 28298 | O46: 458427.6 | P46: 28000 | Q46: 120000 | R46: 456000 | S46: -2427.6 | T46: -0.5323684211
A47: 2 | B47: CZ063 | C47: Vysočina | D47: 107611198 | E47: 600121968 | F47: Blatnice | G47: 12 | H47: 12 | I47: 0 | J47: 0 | K47: 1 | L47: 0 | M47: 12 | N47: 25944 | O47: 420292.8 | P47: 28000 | Q47: 120000 | R47: 456000 | S47: 35707.2 | T47: 7.830526316
A48: 2 | B48: CZ064 | C48: Jihomoravský | D48: 107613701 | E48: 600125378 | F48: Studnice | G48: 12 | H48: 12 | I48: 0 | J48: 0 | K48: 1 | L48: 0 | M48: 12 | N48: 28473 | O48: 461262.6 | P48: 28000 | Q48: 120000 | R48: 456000 | S48: -5262.6 | T48: -1.154078947
A49: 2 | B49: CZ064 | C49: Jihomoravský | D49: 181012294 | E49: 600111229 | F49: Vranov | G49: 12 | H49: 12 | I49: 0 | J49: 0 | K49: 1 | L49: 0 | M49: 12 | N49: 28473 | O49: 461262.6 | P49: 28000 | Q49: 120000 | R49: 456000 | S49: -5262.6 | T49: -1.154078947
A50: 2 | B50: CZ064 | C50: Jihomoravský | D50: 181029600 | E50: 600111032 | F50: Deblín | G50: 12 | H50: 12 | I50: 0 | J50: 0 | K50: 1 | L50: 0 | M50: 12 | N50: 28473 | O50: 461262.6 | P50: 28000 | Q50: 120000 | R50: 456000 | S50: -5262.6 | T50: -1.154078947
A51: 2 | B51: CZ064 | C51: Jihomoravský | D51: 181040603 | E51: 600112471 | F51: Pohořelice | G51: 12 | H51: 12 | I51: 0 | J51: 0 | K51: 1 | L51: 0 | M51: 12 | N51: 28473 | O51: 461262.6 | P51: 28000 | Q51: 120000 | R51: 456000 | S51: -5262.6 | T51: -1.154078947
A52: 2 | B52: CZ071 | C52: Olomoucký | D52: 181000938 | E52: 600140407 | F52: Červenka | G52: 12 | H52: 0 | I52: 12 | J52: 0 | K52: 1 | L52: 0 | M52: 12 | N52: 27754 | O52: 224807.4 | P52: 28000 | Q52: 120000 | R52: 288000 | S52: 63192.6 | T52: 21.941875
A53: 7 | B53: CZ010 | C53: Praha | D53: 110001737 | E53: 600020797 | F53: Magistrát hl. m. Prahy | G53: 12 | H53: 12 | I53: 0 | J53: 0 | K53: 1 | L53: 1 | M53: 12 | N53: 26700 | O53: 432540 | P53: 28000 | Q53: 130000 | R53: 466000 | S53: 33460 | T53: 7.180257511
A54: 7 | B54: CZ020 | C54: Středočeský | D54: 110028074 | E54: 600027937 | F54: KÚ Středočeského kraje | G54: 12 | H54: 12 | I54: 0 | J54: 0 | K54: 1 | L54: 1 | M54: 12 | N54: 32376.47059 | O54: 524498.8235 | P54: 28000 | Q54: 130000 | R54: 466000 | S54: -58498.82353 | T54: -12.55339561
A55: 7 | B55: CZ031 | C55: Jihočeský | D55: 163102112 | E55: 600022269 | F55: KÚ Jihočeského kraje | G55: 12 | H55: 12 | I55: 0 | J55: 0 | K55: 1 | L55: 1 | M55: 12 | N55: 27194 | O55: 440542.8 | P55: 28000 | Q55: 130000 | R55: 466000 | S55: 25457.2 | T55: 5.462918455
A56: 7 | B56: CZ064 | C56: Jihomoravský | D56: 171102134 | E56: 600025896 | F56: KÚ Jihomoravského kraje | G56: 12 | H56: 12 | I56: 0 | J56: 0 | K56: 1 | L56: 1 | M56: 12 | N56: 28473 | O56: 461262.6 | P56: 28000 | Q56: 130000 | R56: 466000 | S56: 4737.4 | T56: 1.016609442
A57: 7 | B57: CZ064 | C57: Jihomoravský | D57: 171102835 | E57: 600024997 | F57: KÚ Jihomoravského kraje | G57: 12 | H57: 12 | I57: 0 | J57: 0 | K57: 2 | L57: 2 | M57: 6 | N57: 28473 | O57: 461262.6 | P57: 27000 | Q57: 130000 | R57: 454000 | S57: -7262.6 | T57: -1.59969163
A58: 2 | B58: CZ031 | C58: Jihočeský | D58: 107534274 | E58: 650050860 | F58: Strážný | G58: 13 | H58: 13 | I58: 0 | J58: 0 | K58: 1 | L58: 0 | M58: 13 | N58: 27194 | O58: 477254.7 | P58: 28000 | Q58: 130000 | R58: 494000 | S58: 16745.3 | T58: 3.389736842
A59: 2 | B59: CZ031 | C59: Jihočeský | D59: 107534649 | E59: 600062899 | F59: Nebahovy | G59: 13 | H59: 13 | I59: 0 | J59: 0 | K59: 1 | L59: 0 | M59: 13 | N59: 27194 | O59: 477254.7 | P59: 28000 | Q59: 130000 | R59: 494000 | S59: 16745.3 | T59: 3.389736842
A60: 2 | B60: CZ053 | C60: Pardubický | D60: 007587775 | E60: 650050363 | F60: Vranová Lhota | G60: 13 | H60: 13 | I60: 0 | J60: 0 | K60: 1 | L60: 0 | M60: 13 | N60: 28288 | O60: 496454.4 | P60: 28000 | Q60: 130000 | R60: 494000 | S60: -2454.4 | T60: -0.4968421053
A61: 2 | B61: CZ063 | C61: Vysočina | D61: 107616190 | E61: 600130827 | F61: Prosetín | G61: 13 | H61: 13 | I61: 0 | J61: 0 | K61: 1 | L61: 0 | M61: 13 | N61: 25944 | O61: 455317.2 | P61: 28000 | Q61: 130000 | R61: 494000 | S61: 38682.8 | T61: 7.830526316
A62: 2 | B62: CZ064 | C62: Jihomoravský | D62: 107614511 | E62: 600126447 | F62: Šafov | G62: 13 | H62: 13 | I62: 0 | J62: 0 | K62: 1 | L62: 0 | M62: 13 | N62: 28473 | O62: 499701.15 | P62: 28000 | Q62: 130000 | R62: 494000 | S62: -5701.15 | T62: -1.154078947
A63: 2 | B63: CZ064 | C63: Jihomoravský | D63: 171101227 | E63: 600115852 | F63: Archlebov | G63: 13 | H63: 13 | I63: 0 | J63: 0 | K63: 1 | L63: 0 | M63: 13 | N63: 28473 | O63: 499701.15 | P63: 28000 | Q63: 130000 | R63: 494000 | S63: -5701.15 | T63: -1.154078947
A64: 2 | B64: CZ064 | C64: Jihomoravský | D64: 181012570 | E64: 600105971 | F64: Drnovice | G64: 13 | H64: 0 | I64: 13 | J64: 0 | K64: 1 | L64: 0 | M64: 13 | N64: 28473 | O64: 249850.575 | P64: 28000 | Q64: 130000 | R64: 312000 | S64: 62149.425 | T64: 19.9196875
A65: 2 | B65: CZ064 | C65: Jihomoravský | D65: 181028719 | E65: 600109771 | F65: Želešice | G65: 13 | H65: 13 | I65: 0 | J65: 0 | K65: 1 | L65: 0 | M65: 13 | N65: 28473 | O65: 499701.15 | P65: 28000 | Q65: 130000 | R65: 494000 | S65: -5701.15 | T65: -1.154078947
A66: 2 | B66: CZ071 | C66: Olomoucký | D66: 181024730 | E66: 600120511 | F66: Olšany u Prostějova | G66: 13 | H66: 13 | I66: 0 | J66: 0 | K66: 1 | L66: 0 | M66: 13 | N66: 27754 | O66: 487082.7 | P66: 28000 | Q66: 130000 | R66: 494000 | S66: 6917.3 | T66: 1.400263158
A67: 2 | B67: CZ080 | C67: Moravskoslezský | D67: 150019475 | E67: 600134083 | F67: Písek | G67: 13 | H67: 13 | I67: 0 | J67: 0 | K67: 1 | L67: 0 | M67: 13 | N67: 30300 | O67: 531765 | P67: 28000 | Q67: 130000 | R67: 494000 | S67: -37765 | T67: -7.644736842
A68: 2 | B68: CZ080 | C68: Moravskoslezský | D68: 174100990 | E68: 600138429 | F68: Bílovec | G68: 13 | H68: 13 | I68: 0 | J68: 0 | K68: 1 | L68: 0 | M68: 13 | N68: 30300 | O68: 531765 | P68: 28000 | Q68: 130000 | R68: 494000 | S68: -37765 | T68: -7.644736842
A69: 2 | B69: CZ080 | C69: Moravskoslezský | D69: 174102810 | E69: 650019962 | F69: Třinec | G69: 13 | H69: 13 | I69: 0 | J69: 0 | K69: 1 | L69: 0 | M69: 13 | N69: 30300 | O69: 531765 | P69: 28000 | Q69: 130000 | R69: 494000 | S69: -37765 | T69: -7.644736842
A70: 2 | B70: CZ080 | C70: Moravskoslezský | D70: 174103565 | E70: 600131866 | F70: Jindřichov | G70: 13 | H70: 13 | I70: 0 | J70: 0 | K70: 1 | L70: 0 | M70: 13 | N70: 30300 | O70: 531765 | P70: 28000 | Q70: 130000 | R70: 494000 | S70: -37765 | T70: -7.644736842
A71: 7 | B71: CZ031 | C71: Jihočeský | D71: 150008872 | E71: 600022722 | F71: KÚ Jihočeského kraje | G71: 13 | H71: 13 | I71: 0 | J71: 0 | K71: 1 | L71: 1 | M71: 13 | N71: 27194 | O71: 477254.7 | P71: 28000 | Q71: 130000 | R71: 494000 | S71: 16745.3 | T71: 3.389736842
A72: 7 | B72: CZ064 | C72: Jihomoravský | D72: 000567043 | E72: 600025501 | F72: KÚ Jihomoravského kraje | G72: 13 | H72: 13 | I72: 0 | J72: 0 | K72: 2 | L72: 2 | M72: 6.5 | N72: 28473 | O72: 499701.15 | P72: 27000 | Q72: 130000 | R72: 481000 | S72: -18701.15 | T72: -3.887972973
A73: 7 | B73: CZ071 | C73: Olomoucký | D73: 181033216 | E73: 600026604 | F73: KÚ Olomouckého kraje | G73: 13 | H73: 13 | I73: 0 | J73: 0 | K73: 1 | L73: 1 | M73: 13 | N73: 27754 | O73: 487082.7 | P73: 28000 | Q73: 130000 | R73: 494000 | S73: 6917.3 | T73: 1.400263158
A74: 2 | B74: CZ020 | C74: Středočeský | D74: 181010119 | E74: 600052753 | F74: Štěchovice | G74: 14 | H74: 14 | I74: 0 | J74: 0 | K74: 1 | L74: 0 | M74: 14 | N74: 31450.55644 | O74: 594415.5167 | P74: 28000 | Q74: 130000 | R74: 522000 | S74: -72415.51669 | T74: -13.87270435
A75: 2 | B75: CZ020 | C75: Středočeský | D75: 181024519 | E75: 691001731 | F75: Všenory | G75: 14 | H75: 14 | I75: 0 | J75: 0 | K75: 1 | L75: 0 | M75: 14 | N75: 31450.55644 | O75: 594415.5167 | P75: 28000 | Q75: 130000 | R75: 522000 | S75: -72415.51669 | T75: -13.87270435
A76: 2 | B76: CZ031 | C76: Jihočeský | D76: 108042430 | E76: 600063682 | F76: Novosedly | G76: 14 | H76: 14 | I76: 0 | J76: 0 | K76: 1 | L76: 0 | M76: 14 | N76: 27024 | O76: 510753.6 | P76: 28000 | Q76: 130000 | R76: 522000 | S76: 11246.4 | T76: 2.154482759
A77: 2 | B77: CZ032 | C77: Plzeňský | D77: 115900268 | E77: 600073955 | F77: Hošťka | G77: 14 | H77: 14 | I77: 0 | J77: 0 | K77: 1 | L77: 0 | M77: 14 | N77: 30771 | O77: 581571.9 | P77: 28000 | Q77: 130000 | R77: 522000 | S77: -59571.9 | T77: -11.41224138
A78: 2 | B78: CZ041 | C78: Karlovarský | D78: 107546175 | E78: 600072886 | F78: Libavské Údolí | G78: 14 | H78: 14 | I78: 0 | J78: 0 | K78: 1 | L78: 0 | M78: 14 | N78: 28414.37632 | O78: 537031.7125 | P78: 28000 | Q78: 130000 | R78: 522000 | S78: -15031.71247 | T78: -2.879638405
A79: 2 | B79: CZ053 | C79: Pardubický | D79: 169100201 | E79: 600099989 | F79: Kunčina | G79: 14 | H79: 14 | I79: 0 | J79: 0 | K79: 1 | L79: 0 | M79: 14 | N79: 27564 | O79: 520959.6 | P79: 28000 | Q79: 130000 | R79: 522000 | S79: 1040.4 | T79: 0.1993103448
A80: 2 | B80: CZ063 | C80: Vysočina | D80: 107533324 | E80: 600060985 | F80: Velká Chyška | G80: 14 | H80: 14 | I80: 0 | J80: 0 | K80: 1 | L80: 0 | M80: 14 | N80: 25438 | O80: 480778.2 | P80: 28000 | Q80: 130000 | R80: 522000 | S80: 41221.8 | T80: 7.896896552
A81: 2 | B81: CZ063 | C81: Vysočina | D81: 107580489 | E81: 600086976 | F81: Uhelná Příbram | G81: 14 | H81: 14 | I81: 0 | J81: 0 | K81: 1 | L81: 0 | M81: 14 | N81: 25438 | O81: 480778.2 | P81: 28000 | Q81: 130000 | R81: 522000 | S81: 41221.8 | T81: 7.896896552
A82: 2 | B82: CZ071 | C82: Olomoucký | D82: 107627035 | E82: 600140512 | F82: Krčmaň | G82: 14 | H82: 14 | I82: 0 | J82: 0 | K82: 1 | L82: 0 | M82: 14 | N82: 26745 | O82: 505480.5 | P82: 28000 | Q82: 130000 | R82: 522000 | S82: 16519.5 | T82: 3.164655172
A83: 2 | B83: CZ072 | C83: Zlínský | D83: 107612666 | E83: 600123537 | F83: Košíky | G83: 14 | H83: 14 | I83: 0 | J83: 0 | K83: 1 | L83: 0 | M83: 14 | N83: 26796 | O83: 506444.4 | P83: 28000 | Q83: 130000 | R83: 522000 | S83: 15555.6 | T83: 2.98
A84: 2 | B84: CZ080 | C84: Moravskoslezský | D84: 103480251 | E84: 600133486 | F84: Jablunkov | G84: 14 | H84: 14 | I84: 0 | J84: 0 | K84: 1 | L84: 0 | M84: 14 | N84: 29964 | O84: 566319.6 | P84: 28000 | Q84: 130000 | R84: 522000 | S84: -44319.6 | T84: -8.490344828
A85: 2 | B85: CZ080 | C85: Moravskoslezský | D85: 174103115 | E85: 600137422 | F85: Studénka | G85: 14 | H85: 14 | I85: 0 | J85: 0 | K85: 1 | L85: 0 | M85: 14 | N85: 29964 | O85: 566319.6 | P85: 28000 | Q85: 130000 | R85: 522000 | S85: -44319.6 | T85: -8.490344828
A86: 7 | B86: CZ032 | C86: Plzeňský | D86: 181035405 | E86: 600023036 | F86: KÚ Plzeňského kraje | G86: 14 | H86: 14 | I86: 0 | J86: 0 | K86: 2 | L86: 2 | M86: 7 | N86: 30771 | O86: 581571.9 | P86: 27000 | Q86: 130000 | R86: 508000 | S86: -73571.9 | T86: -14.48265748
A87: 7 | B87: CZ064 | C87: Jihomoravský | D87: 181011557 | E87: 600024911 | F87: KÚ Jihomoravského kraje | G87: 14 | H87: 14 | I87: 0 | J87: 0 | K87: 2 | L87: 2 | M87: 7 | N87: 27848 | O87: 526327.2 | P87: 27000 | Q87: 130000 | R87: 508000 | S87: -18327.2 | T87: -3.607716535
A88: 7 | B88: CZ064 | C88: Jihomoravský | D88: 181038064 | E88: 600030083 | F88: KÚ Jihomoravského kraje | G88: 14 | H88: 14 | I88: 0 | J88: 0 | K88: 1 | L88: 0 | M88: 14 | N88: 27848 | O88: 526327.2 | P88: 28000 | Q88: 130000 | R88: 522000 | S88: -4327.2 | T88: -0.8289655172
A89: 2 | B89: CZ010 | C89: Praha | D89: 181037505 | E89: 661102106 | F89: Praha-Velká Chuchle | G89: 15 | H89: 15 | I89: 0 | J89: 0 | K89: 1 | L89: 0 | M89: 15 | N89: 25902.08573 | O89: 524517.236 | P89: 28000 | Q89: 130000 | R89: 550000 | S89: 25482.764 | T89: 4.633229819
A90: 2 | B90: CZ020 | C90: Středočeský | D90: 107512076 | E90: 600044661 | F90: Kladno | G90: 15 | H90: 15 | I90: 0 | J90: 0 | K90: 2 | L90: 2 | M90: 7.5 | N90: 30573.37461 | O90: 619110.8359 | P90: 27000 | Q90: 130000 | R90: 535000 | S90: -84110.83591 | T90: -15.72165157
A91: 2 | B91: CZ020 | C91: Středočeský | D91: 181004062 | E91: 650014383 | F91: Tetín | G91: 15 | H91: 15 | I91: 0 | J91: 0 | K91: 1 | L91: 0 | M91: 15 | N91: 30573.37461 | O91: 619110.8359 | P91: 28000 | Q91: 130000 | R91: 550000 | S91: -69110.83591 | T91: -12.56560653
A92: 2 | B92: CZ020 | C92: Středočeský | D92: 181029596 | E92: 600052907 | F92: Vrané nad Vltavou | G92: 15 | H92: 15 | I92: 0 | J92: 0 | K92: 1 | L92: 0 | M92: 15 | N92: 30573.37461 | O92: 619110.8359 | P92: 28000 | Q92: 130000 | R92: 550000 | S92: -69110.83591 | T92: -12.56560653
A93: 2 | B93: CZ020 | C93: Středočeský | D93: 181038455 | E93: 600044203 | F93: Družec | G93: 15 | H93: 15 | I93: 0 | J93: 0 | K93: 1 | L93: 0 | M93: 15 | N93: 30573.37461 | O93: 619110.8359 | P93: 28000 | Q93: 130000 | R93: 550000 | S93: -69110.83591 | T93: -12.56560653
A94: 2 | B94: CZ020 | C94: Středočeský | D94: 181039605 | E94: 600046044 | F94: Zbraslavice | G94: 15 | H94: 15 | I94: 0 | J94: 0 | K94: 1 | L94: 0 | M94: 15 | N94: 30573.37461 | O94: 619110.8359 | P94: 28000 | Q94: 130000 | R94: 550000 | S94: -69110.83591 | T94: -12.56560653
A95: 2 | B95: CZ031 | C95: Jihočeský | D95: 107534169 | E95: 650055900 | F95: Horní Vltavice | G95: 15 | H95: 15 | I95: 0 | J95: 0 | K95: 1 | L95: 0 | M95: 15 | N95: 26593 | O95: 538508.25 | P95: 28000 | Q95: 130000 | R95: 550000 | S95: 11491.75 | T95: 2.089409091
A96: 2 | B96: CZ031 | C96: Jihočeský | D96: 163102805 | E96: 663000297 | F96: Benešov nad Černou | G96: 15 | H96: 15 | I96: 0 | J96: 0 | K96: 1 | L96: 0 | M96: 15 | N96: 26593 | O96: 538508.25 | P96: 28000 | Q96: 130000 | R96: 550000 | S96: 11491.75 | T96: 2.089409091
A97: 2 | B97: CZ032 | C97: Plzeňský | D97: 107543052 | E97: 664000444 | F97: Klatovy | G97: 15 | H97: 15 | I97: 0 | J97: 0 | K97: 1 | L97: 0 | M97: 15 | N97: 29721 | O97: 601850.25 | P97: 28000 | Q97: 130000 | R97: 550000 | S97: -51850.25 | T97: -9.427318182
A98: 2 | B98: CZ032 | C98: Plzeňský | D98: 164100741 | E98: 650055217 | F98: Kašperské Hory | G98: 15 | H98: 15 | I98: 0 | J98: 0 | K98: 1 | L98: 0 | M98: 15 | N98: 29721 | O98: 601850.25 | P98: 28000 | Q98: 130000 | R98: 550000 | S98: -51850.25 | T98: -9.427318182
A99: 2 | B99: CZ032 | C99: Plzeňský | D99: 164101853 | E99: 650015215 | F99: Nýřany | G99: 15 | H99: 15 | I99: 0 | J99: 0 | K99: 1 | L99: 0 | M99: 15 | N99: 29721 | O99: 601850.25 | P99: 28000 | Q99: 130000 | R99: 550000 | S99: -51850.25 | T99: -9.427318182
A100: 2 | B100: CZ032 | C100: Plzeňský | D100: 181002159 | E100: 600073645 | F100: Stříbro | G100: 15 | H100: 0 | I100: 15 | J100: 0 | K100: 1 | L100: 0 | M100: 15 | N100: 29721 | O100: 300925.125 | P100: 28000 | Q100: 130000 | R100: 340000 | S100: 39074.875 | T100: 11.49261029
A101: 2 | B101: CZ041 | C101: Karlovarský | D101: 165101351 | E101: 600066177 | F101: Cheb | G101: 15 | H101: 15 | I101: 0 | J101: 0 | K101: 1 | L101: 1 | M101: 15 | N101: 28414.37632 | O101: 575391.1205 | P101: 28000 | Q101: 130000 | R101: 550000 | S101: -25391.12051 | T101: -4.616567365
A102: 2 | B102: CZ042 | C102: Ústecký | D102: 102565091 | E102: 600080919 | F102: Vrutice | G102: 15 | H102: 15 | I102: 0 | J102: 0 | K102: 1 | L102: 0 | M102: 15 | N102: 27948 | O102: 565947 | P102: 28000 | Q102: 130000 | R102: 550000 | S102: -15947 | T102: -2.899454545
A103: 2 | B103: CZ042 | C103: Ústecký | D103: 107562201 | E103: 600077250 | F103: Chbany | G103: 15 | H103: 15 | I103: 0 | J103: 0 | K103: 1 | L103: 0 | M103: 15 | N103: 27948 | O103: 565947 | P103: 28000 | Q103: 130000 | R103: 550000 | S103: -15947 | T103: -2.899454545
A104: 2 | B104: CZ042 | C104: Ústecký | D104: 166100242 | E104: 600081729 | F104: Velemín | G104: 15 | H104: 15 | I104: 0 | J104: 0 | K104: 1 | L104: 0 | M104: 15 | N104: 27948 | O104: 565947 | P104: 28000 | Q104: 130000 | R104: 550000 | S104: -15947 | T104: -2.899454545
A105: 2 | B105: CZ042 | C105: Ústecký | D105: 181012073 | E105: 600076466 | F105: Ludvíkovice | G105: 15 | H105: 15 | I105: 0 | J105: 0 | K105: 1 | L105: 0 | M105: 15 | N105: 27948 | O105: 565947 | P105: 28000 | Q105: 130000 | R105: 550000 | S105: -15947 | T105: -2.899454545
A106: 2 | B106: CZ052 | C106: Královéhradecký | D106: 107583666 | E106: 650062531 | F106: Martínkovice | G106: 15 | H106: 15 | I106: 0 | J106: 0 | K106: 1 | L106: 0 | M106: 15 | N106: 26391.60839 | O106: 534430.0699 | P106: 28000 | Q106: 130000 | R106: 550000 | S106: 15569.93007 | T106: 2.830896376
A107: 2 | B107: CZ052 | C107: Královéhradecký | D107: 168101262 | E107: 650063325 | F107: Vrchlabí | G107: 15 | H107: 15 | I107: 0 | J107: 0 | K107: 1 | L107: 0 | M107: 15 | N107: 26391.60839 | O107: 534430.0699 | P107: 28000 | Q107: 130000 | R107: 550000 | S107: 15569.93007 | T107: 2.830896376
A108: 2 | B108: CZ053 | C108: Pardubický | D108: 007587244 | E108: 650041372 | F108: Rohozná | G108: 15 | H108: 15 | I108: 0 | J108: 0 | K108: 1 | L108: 0 | M108: 15 | N108: 26907 | O108: 544866.75 | P108: 28000 | Q108: 130000 | R108: 550000 | S108: 5133.25 | T108: 0.9333181818
A109: 2 | B109: CZ053 | C109: Pardubický | D109: 181027348 | E109: 669000141 | F109: Miřetice | G109: 15 | H109: 15 | I109: 0 | J109: 0 | K109: 1 | L109: 0 | M109: 15 | N109: 26907 | O109: 544866.75 | P109: 28000 | Q109: 130000 | R109: 550000 | S109: 5133.25 | T109: 0.9333181818
A110: 2 | B110: CZ053 | C110: Pardubický | D110: 181038218 | E110: 600100723 | F110: Široký Důl | G110: 15 | H110: 15 | I110: 0 | J110: 0 | K110: 1 | L110: 0 | M110: 15 | N110: 26907 | O110: 544866.75 | P110: 28000 | Q110: 130000 | R110: 550000 | S110: 5133.25 | T110: 0.9333181818
A111: 2 | B111: CZ063 | C111: Vysočina | D111: 107608588 | E111: 600116719 | F111: Radkov | G111: 15 | H111: 15 | I111: 0 | J111: 0 | K111: 1 | L111: 0 | M111: 15 | N111: 24951 | O111: 505257.75 | P111: 28000 | Q111: 130000 | R111: 550000 | S111: 44742.25 | T111: 8.134954545
A112: 2 | B112: CZ063 | C112: Vysočina | D112: 107608901 | E112: 600116883 | F112: Brzkov | G112: 15 | H112: 15 | I112: 0 | J112: 0 | K112: 1 | L112: 0 | M112: 15 | N112: 24951 | O112: 505257.75 | P112: 28000 | Q112: 130000 | R112: 550000 | S112: 44742.25 | T112: 8.134954545
A113: 2 | B113: CZ063 | C113: Vysočina | D113: 107615711 | E113: 600130754 | F113: Obyčtov | G113: 15 | H113: 15 | I113: 0 | J113: 0 | K113: 1 | L113: 0 | M113: 15 | N113: 24951 | O113: 505257.75 | P113: 28000 | Q113: 130000 | R113: 550000 | S113: 44742.25 | T113: 8.134954545
A114: 2 | B114: CZ063 | C114: Vysočina | D114: 107615835 | E114: 600129349 | F114: Malá Losenice | G114: 15 | H114: 15 | I114: 0 | J114: 0 | K114: 1 | L114: 0 | M114: 15 | N114: 24951 | O114: 505257.75 | P114: 28000 | Q114: 130000 | R114: 550000 | S114: 44742.25 | T114: 8.134954545
A115: 2 | B115: CZ063 | C115: Vysočina | D115: 107616114 | E115: 600130711 | F115: Dobrá Voda | G115: 15 | H115: 15 | I115: 0 | J115: 0 | K115: 1 | L115: 0 | M115: 15 | N115: 24951 | O115: 505257.75 | P115: 28000 | Q115: 130000 | R115: 550000 | S115: 44742.25 | T115: 8.134954545
A116: 2 | B116: CZ063 | C116: Vysočina | D116: 181040344 | E116: 600129144 | F116: Měřín | G116: 15 | H116: 15 | I116: 0 | J116: 0 | K116: 1 | L116: 0 | M116: 15 | N116: 24951 | O116: 505257.75 | P116: 28000 | Q116: 130000 | R116: 550000 | S116: 44742.25 | T116: 8.134954545
A117: 2 | B117: CZ064 | C117: Jihomoravský | D117: 107613271 | E117: 600124801 | F117: Ježkovice | G117: 15 | H117: 0 | I117: 15 | J117: 0 | K117: 1 | L117: 0 | M117: 15 | N117: 27250 | O117: 275906.25 | P117: 28000 | Q117: 130000 | R117: 340000 | S117: 64093.75 | T117: 18.85110294
A118: 2 | B118: CZ064 | C118: Jihomoravský | D118: 107614197 | E118: 600127257 | F118: Hostim | G118: 15 | H118: 15 | I118: 0 | J118: 0 | K118: 1 | L118: 0 | M118: 15 | N118: 27250 | O118: 551812.5 | P118: 28000 | Q118: 130000 | R118: 550000 | S118: -1812.5 | T118: -0.3295454545
A119: 2 | B119: CZ064 | C119: Jihomoravský | D119: 107615266 | E119: 600127036 | F119: Korolupy | G119: 15 | H119: 15 | I119: 0 | J119: 0 | K119: 1 | L119: 0 | M119: 15 | N119: 27250 | O119: 551812.5 | P119: 28000 | Q119: 130000 | R119: 550000 | S119: -1812.5 | T119: -0.3295454545
A120: 2 | B120: CZ064 | C120: Jihomoravský | D120: 118100840 | E120: 600106080 | F120: Úsobrno | G120: 15 | H120: 15 | I120: 0 | J120: 0 | K120: 1 | L120: 0 | M120: 15 | N120: 27250 | O120: 551812.5 | P120: 28000 | Q120: 130000 | R120: 550000 | S120: -1812.5 | T120: -0.3295454545
A121: 2 | B121: CZ064 | C121: Jihomoravský | D121: 171101235 | E121: 600115852 | F121: Archlebov | G121: 15 | H121: 15 | I121: 0 | J121: 0 | K121: 1 | L121: 0 | M121: 15 | N121: 27250 | O121: 551812.5 | P121: 28000 | Q121: 130000 | R121: 550000 | S121: -1812.5 | T121: -0.3295454545
A122: 2 | B122: CZ064 | C122: Jihomoravský | D122: 171101464 | E122: 600112357 | F122: Drnholec | G122: 15 | H122: 15 | I122: 0 | J122: 0 | K122: 1 | L122: 0 | M122: 15 | N122: 27250 | O122: 551812.5 | P122: 28000 | Q122: 130000 | R122: 550000 | S122: -1812.5 | T122: -0.3295454545
A123: 2 | B123: CZ064 | C123: Jihomoravský | D123: 181018462 | E123: 600115577 | F123: Mutěnice | G123: 15 | H123: 0 | I123: 15 | J123: 0 | K123: 1 | L123: 0 | M123: 15 | N123: 27250 | O123: 275906.25 | P123: 28000 | Q123: 130000 | R123: 340000 | S123: 64093.75 | T123: 18.85110294
A124: 2 | B124: CZ064 | C124: Jihomoravský | D124: 181019639 | E124: 600110591 | F124: Moravské Knínice | G124: 15 | H124: 15 | I124: 0 | J124: 0 | K124: 1 | L124: 0 | M124: 15 | N124: 27250 | O124: 551812.5 | P124: 28000 | Q124: 130000 | R124: 550000 | S124: -1812.5 | T124: -0.3295454545
A125: 2 | B125: CZ064 | C125: Jihomoravský | D125: 181021803 | E125: 600126030 | F125: Šaratice | G125: 15 | H125: 0 | I125: 15 | J125: 0 | K125: 1 | L125: 0 | M125: 15 | N125: 27250 | O125: 275906.25 | P125: 28000 | Q125: 130000 | R125: 340000 | S125: 64093.75 | T125: 18.85110294
A126: 2 | B126: CZ064 | C126: Jihomoravský | D126: 181028441 | E126: 600127524 | F126: Blížkovice | G126: 15 | H126: 15 | I126: 0 | J126: 0 | K126: 1 | L126: 0 | M126: 15 | N126: 27250 | O126: 551812.5 | P126: 28000 | Q126: 130000 | R126: 550000 | S126: -1812.5 | T126: -0.3295454545
A127: 2 | B127: CZ064 | C127: Jihomoravský | D127: 181040417 | E127: 600111326 | F127: Drásov | G127: 15 | H127: 15 | I127: 0 | J127: 0 | K127: 1 | L127: 0 | M127: 15 | N127: 27250 | O127: 551812.5 | P127: 28000 | Q127: 130000 | R127: 550000 | S127: -1812.5 | T127: -0.3295454545
A128: 2 | B128: CZ071 | C128: Olomoucký | D128: 107632586 | E128: 600147363 | F128: Malá Morava | G128: 15 | H128: 15 | I128: 0 | J128: 0 | K128: 1 | L128: 0 | M128: 15 | N128: 25838 | O128: 523219.5 | P128: 28000 | Q128: 130000 | R128: 550000 | S128: 26780.5 | T128: 4.869181818
A129: 2 | B129: CZ071 | C129: Olomoucký | D129: 150005652 | E129: 600148599 | F129: Kamenná | G129: 15 | H129: 15 | I129: 0 | J129: 0 | K129: 1 | L129: 0 | M129: 15 | N129: 25838 | O129: 523219.5 | P129: 28000 | Q129: 130000 | R129: 550000 | S129: 26780.5 | T129: 4.869181818
A130: 2 | B130: CZ071 | C130: Olomoucký | D130: 172101301 | E130: 600146936 | F130: Domaželice | G130: 15 | H130: 15 | I130: 0 | J130: 0 | K130: 1 | L130: 0 | M130: 15 | N130: 25838 | O130: 523219.5 | P130: 28000 | Q130: 130000 | R130: 550000 | S130: 26780.5 | T130: 4.869181818
A131: 2 | B131: CZ071 | C131: Olomoucký | D131: 172103053 | E131: 600140962 | F131: Bohuňovice | G131: 15 | H131: 15 | I131: 0 | J131: 0 | K131: 1 | L131: 0 | M131: 15 | N131: 25838 | O131: 523219.5 | P131: 28000 | Q131: 130000 | R131: 550000 | S131: 26780.5 | T131: 4.869181818
A132: 2 | B132: CZ071 | C132: Olomoucký | D132: 181001349 | E132: 600140962 | F132: Bohuňovice | G132: 15 | H132: 15 | I132: 0 | J132: 0 | K132: 1 | L132: 0 | M132: 15 | N132: 25838 | O132: 523219.5 | P132: 28000 | Q132: 130000 | R132: 550000 | S132: 26780.5 | T132: 4.869181818
A133: 2 | B133: CZ071 | C133: Olomoucký | D133: 181039044 | E133: 600139921 | F133: Velký Týnec | G133: 15 | H133: 15 | I133: 0 | J133: 0 | K133: 1 | L133: 0 | M133: 15 | N133: 25838 | O133: 523219.5 | P133: 28000 | Q133: 130000 | R133: 550000 | S133: 26780.5 | T133: 4.869181818
A134: 2 | B134: CZ072 | C134: Zlínský | D134: 107609291 | E134: 600117782 | F134: Bařice | G134: 15 | H134: 15 | I134: 0 | J134: 0 | K134: 1 | L134: 0 | M134: 15 | N134: 26796 | O134: 542619 | P134: 28000 | Q134: 130000 | R134: 550000 | S134: 7381 | T134: 1.342
A135: 2 | B135: CZ072 | C135: Zlínský | D135: 173101666 | E135: 600123278 | F135: Hluk | G135: 15 | H135: 0 | I135: 15 | J135: 0 | K135: 1 | L135: 0 | M135: 15 | N135: 26796 | O135: 271309.5 | P135: 28000 | Q135: 130000 | R135: 340000 | S135: 68690.5 | T135: 20.20308824
A136: 2 | B136: CZ072 | C136: Zlínský | D136: 181021790 | E136: 600149277 | F136: Valašská Bystřice | G136: 15 | H136: 15 | I136: 0 | J136: 0 | K136: 1 | L136: 0 | M136: 15 | N136: 26796 | O136: 542619 | P136: 28000 | Q136: 130000 | R136: 550000 | S136: 7381 | T136: 1.342
A137: 2 | B137: CZ080 | C137: Moravskoslezský | D137: 119500639 | E137: 600132081 | F137: Rudná pod Pradědem | G137: 15 | H137: 15 | I137: 0 | J137: 0 | K137: 1 | L137: 0 | M137: 15 | N137: 29654 | O137: 600493.5 | P137: 28000 | Q137: 130000 | R137: 550000 | S137: -50493.5 | T137: -9.180636364
A138: 2 | B138: CZ080 | C138: Moravskoslezský | D138: 174102488 | E138: 674000374 | F138: Karviná | G138: 15 | H138: 15 | I138: 0 | J138: 0 | K138: 1 | L138: 0 | M138: 15 | N138: 29654 | O138: 600493.5 | P138: 28000 | Q138: 130000 | R138: 550000 | S138: -50493.5 | T138: -9.180636364
A139: 2 | B139: CZ080 | C139: Moravskoslezský | D139: 174106858 | E139: 600143619 | F139: Slezská Ostrava | G139: 15 | H139: 15 | I139: 0 | J139: 0 | K139: 1 | L139: 0 | M139: 15 | N139: 29654 | O139: 600493.5 | P139: 28000 | Q139: 130000 | R139: 550000 | S139: -50493.5 | T139: -9.180636364
A140: 2 | B140: CZ080 | C140: Moravskoslezský | D140: 181039079 | E140: 600138020 | F140: Závišice | G140: 15 | H140: 15 | I140: 0 | J140: 0 | K140: 1 | L140: 0 | M140: 15 | N140: 29654 | O140: 600493.5 | P140: 28000 | Q140: 130000 | R140: 550000 | S140: -50493.5 | T140: -9.180636364
A141: 7 | B141: CZ020 | C141: Středočeský | D141: 110450744 | E141: 600021556 | F141: KÚ Středočeského kraje | G141: 15 | H141: 15 | I141: 0 | J141: 0 | K141: 3 | L141: 3 | M141: 5 | N141: 30573.37461 | O141: 619110.8359 | P141: 27000 | Q141: 130000 | R141: 535000 | S141: -84110.83591 | T141: -15.72165157
A142: 7 | B142: CZ064 | C142: Jihomoravský | D142: 110023358 | E142: 600024962 | F142: KÚ Jihomoravského kraje | G142: 15 | H142: 15 | I142: 0 | J142: 0 | K142: 1 | L142: 1 | M142: 15 | N142: 27250 | O142: 551812.5 | P142: 28000 | Q142: 130000 | R142: 550000 | S142: -1812.5 | T142: -0.3295454545
A143: 7 | B143: CZ064 | C143: Jihomoravský | D143: 171103009 | E143: 610300733 | F143: KÚ Jihomoravského kraje | G143: 15 | H143: 15 | I143: 0 | J143: 0 | K143: 3 | L143: 3 | M143: 5 | N143: 27250 | O143: 551812.5 | P143: 27000 | Q143: 130000 | R143: 535000 | S143: -16812.5 | T143: -3.142523364
A144: 7 | B144: CZ071 | C144: Olomoucký | D144: 108012867 | E144: 600026647 | F144: KÚ Olomouckého kraje | G144: 15 | H144: 15 | I144: 0 | J144: 0 | K144: 2 | L144: 2 | M144: 7.5 | N144: 25838 | O144: 523219.5 | P144: 27000 | Q144: 130000 | R144: 535000 | S144: 11780.5 | T144: 2.201962617
A145: 2 | B145: CZ020 | C145: Středočeský | D145: 107512921 | E145: 600046141 | F145: Kutná Hora | G145: 16 | H145: 16 | I145: 0 | J145: 0 | K145: 1 | L145: 0 | M145: 16 | N145: 29741.17647 | O145: 642409.4118 | P145: 28000 | Q145: 130000 | R145: 578000 | S145: -64409.41176 | T145: -11.14349685
A146: 2 | B146: CZ020 | C146: Středočeský | D146: 107518295 | E146: 600055698 | F146: Olešná | G146: 16 | H146: 16 | I146: 0 | J146: 0 | K146: 1 | L146: 0 | M146: 16 | N146: 29741.17647 | O146: 642409.4118 | P146: 28000 | Q146: 130000 | R146: 578000 | S146: -64409.41176 | T146: -11.14349685
A147: 2 | B147: CZ020 | C147: Středočeský | D147: 114002941 | E147: 600054713 | F147: Solenice | G147: 16 | H147: 16 | I147: 0 | J147: 0 | K147: 1 | L147: 0 | M147: 16 | N147: 29741.17647 | O147: 642409.4118 | P147: 28000 | Q147: 130000 | R147: 578000 | S147: -64409.41176 | T147: -11.14349685
A148: 2 | B148: CZ031 | C148: Jihočeský | D148: 107531691 | E148: 600059430 | F148: Horní Dvořiště | G148: 16 | H148: 16 | I148: 0 | J148: 0 | K148: 1 | L148: 0 | M148: 16 | N148: 26177 | O148: 565423.2 | P148: 28000 | Q148: 130000 | R148: 578000 | S148: 12576.8 | T148: 2.175916955
A149: 2 | B149: CZ031 | C149: Jihočeský | D149: 107534509 | E149: 650050142 | F149: Nová Pec | G149: 16 | H149: 16 | I149: 0 | J149: 0 | K149: 1 | L149: 0 | M149: 16 | N149: 26177 | O149: 565423.2 | P149: 28000 | Q149: 130000 | R149: 578000 | S149: 12576.8 | T149: 2.175916955
A150: 2 | B150: CZ031 | C150: Jihočeský | D150: 108053679 | E150: 600061973 | F150: Božetice | G150: 16 | H150: 16 | I150: 0 | J150: 0 | K150: 1 | L150: 0 | M150: 16 | N150: 26177 | O150: 565423.2 | P150: 28000 | Q150: 130000 | R150: 578000 | S150: 12576.8 | T150: 2.175916955
A151: 2 | B151: CZ031 | C151: Jihočeský | D151: 163100322 | E151: 650032128 | F151: Litvínovice | G151: 16 | H151: 16 | I151: 0 | J151: 0 | K151: 1 | L151: 0 | M151: 16 | N151: 26177 | O151: 565423.2 | P151: 28000 | Q151: 130000 | R151: 578000 | S151: 12576.8 | T151: 2.175916955
A152: 2 | B152: CZ032 | C152: Plzeňský | D152: 107540355 | E152: 600065383 | F152: Tlumačov | G152: 16 | H152: 16 | I152: 0 | J152: 0 | K152: 1 | L152: 0 | M152: 16 | N152: 28798 | O152: 622036.8 | P152: 28000 | Q152: 130000 | R152: 578000 | S152: -44036.8 | T152: -7.618823529
A153: 2 | B153: CZ032 | C153: Plzeňský | D153: 107542391 | E153: 650032314 | F153: Čachrov | G153: 16 | H153: 16 | I153: 0 | J153: 0 | K153: 1 | L153: 0 | M153: 16 | N153: 28798 | O153: 622036.8 | P153: 28000 | Q153: 130000 | R153: 578000 | S153: -44036.8 | T153: -7.618823529
A154: 2 | B154: CZ032 | C154: Plzeňský | D154: 107542897 | E154: 600068200 | F154: Svéradice | G154: 16 | H154: 16 | I154: 0 | J154: 0 | K154: 1 | L154: 0 | M154: 16 | N154: 28798 | O154: 622036.8 | P154: 28000 | Q154: 130000 | R154: 578000 | S154: -44036.8 | T154: -7.618823529
A155: 2 | B155: CZ032 | C155: Plzeňský | D155: 107544482 | E155: 650015428 | F155: Bezvěrov | G155: 16 | H155: 16 | I155: 0 | J155: 0 | K155: 1 | L155: 0 | M155: 16 | N155: 28798 | O155: 622036.8 | P155: 28000 | Q155: 130000 | R155: 578000 | S155: -44036.8 | T155: -7.618823529
A156: 2 | B156: CZ041 | C156: Karlovarský | D156: 107541505 | E156: 650016581 | F156: Horní Blatná | G156: 16 | H156: 16 | I156: 0 | J156: 0 | K156: 1 | L156: 0 | M156: 16 | N156: 28414.37632 | O156: 613750.5285 | P156: 28000 | Q156: 130000 | R156: 578000 | S156: -35750.52854 | T156: -6.18521255
A157: 2 | B157: CZ041 | C157: Karlovarský | D157: 107542081 | E157: 600067378 | F157: Štědrá | G157: 16 | H157: 16 | I157: 0 | J157: 0 | K157: 1 | L157: 0 | M157: 16 | N157: 28414.37632 | O157: 613750.5285 | P157: 28000 | Q157: 130000 | R157: 578000 | S157: -35750.52854 | T157: -6.18521255
A158: 2 | B158: CZ041 | C158: Karlovarský | D158: 115100385 | E158: 600066487 | F158: Stará Voda | G158: 16 | H158: 16 | I158: 0 | J158: 0 | K158: 1 | L158: 0 | M158: 16 | N158: 28414.37632 | O158: 613750.5285 | P158: 28000 | Q158: 130000 | R158: 578000 | S158: -35750.52854 | T158: -6.18521255
A159: 2 | B159: CZ042 | C159: Ústecký | D159: 107568276 | E159: 600084396 | F159: Hostomice | G159: 16 | H159: 16 | I159: 0 | J159: 0 | K159: 1 | L159: 0 | M159: 16 | N159: 27948 | O159: 603676.8 | P159: 28000 | Q159: 130000 | R159: 578000 | S159: -25676.8 | T159: -4.442352941
A160: 2 | B160: CZ052 | C160: Královéhradecký | D160: 107582945 | E160: 600092488 | F160: Vidochov | G160: 16 | H160: 16 | I160: 0 | J160: 0 | K160: 1 | L160: 0 | M160: 16 | N160: 25500 | O160: 550800 | P160: 28000 | Q160: 130000 | R160: 578000 | S160: 27200 | T160: 4.705882353
A161: 2 | B161: CZ052 | C161: Královéhradecký | D161: 107583909 | E161: 600093271 | F161: Šonov | G161: 16 | H161: 16 | I161: 0 | J161: 0 | K161: 1 | L161: 0 | M161: 16 | N161: 25500 | O161: 550800 | P161: 28000 | Q161: 130000 | R161: 578000 | S161: 27200 | T161: 4.705882353
A162: 2 | B162: CZ052 | C162: Královéhradecký | D162: 181026996 | E162: 650062345 | F162: Černilov | G162: 16 | H162: 16 | I162: 0 | J162: 0 | K162: 1 | L162: 0 | M162: 16 | N162: 25500 | O162: 550800 | P162: 28000 | Q162: 130000 | R162: 578000 | S162: 27200 | T162: 4.705882353
A163: 2 | B163: CZ053 | C163: Pardubický | D163: 007586809 | E163: 600099580 | F163: Březina | G163: 16 | H163: 16 | I163: 0 | J163: 0 | K163: 1 | L163: 0 | M163: 16 | N163: 26306 | O163: 568209.6 | P163: 28000 | Q163: 130000 | R163: 578000 | S163: 9790.4 | T163: 1.69384083
A164: 2 | B164: CZ053 | C164: Pardubický | D164: 007587449 | E164: 600099946 | F164: Hartmanice | G164: 16 | H164: 16 | I164: 0 | J164: 0 | K164: 1 | L164: 0 | M164: 16 | N164: 26306 | O164: 568209.6 | P164: 28000 | Q164: 130000 | R164: 578000 | S164: 9790.4 | T164: 1.69384083
A165: 2 | B165: CZ053 | C165: Pardubický | D165: 007587716 | E165: 650046293 | F165: Květná | G165: 16 | H165: 16 | I165: 0 | J165: 0 | K165: 1 | L165: 0 | M165: 16 | N165: 26306 | O165: 568209.6 | P165: 28000 | Q165: 130000 | R165: 578000 | S165: 9790.4 | T165: 1.69384083
A166: 2 | B166: CZ053 | C166: Pardubický | D166: 107589605 | E166: 650052307 | F166: Orličky | G166: 16 | H166: 16 | I166: 0 | J166: 0 | K166: 1 | L166: 0 | M166: 16 | N166: 26306 | O166: 568209.6 | P166: 28000 | Q166: 130000 | R166: 578000 | S166: 9790.4 | T166: 1.69384083
A167: 2 | B167: CZ053 | C167: Pardubický | D167: 181006731 | E167: 600100189 | F167: Pustá Kamenice | G167: 16 | H167: 16 | I167: 0 | J167: 0 | K167: 1 | L167: 0 | M167: 16 | N167: 26306 | O167: 568209.6 | P167: 28000 | Q167: 130000 | R167: 578000 | S167: 9790.4 | T167: 1.69384083
A168: 2 | B168: CZ063 | C168: Vysočina | D168: 107608081 | E168: 600116361 | F168: Jersín | G168: 16 | H168: 16 | I168: 0 | J168: 0 | K168: 1 | L168: 0 | M168: 16 | N168: 24482 | O168: 528811.2 | P168: 28000 | Q168: 130000 | R168: 578000 | S168: 49188.8 | T168: 8.51017301
A169: 2 | B169: CZ063 | C169: Vysočina | D169: 107611775 | E169: 600121658 | F169: Třebenice | G169: 16 | H169: 16 | I169: 0 | J169: 0 | K169: 1 | L169: 0 | M169: 16 | N169: 24482 | O169: 528811.2 | P169: 28000 | Q169: 130000 | R169: 578000 | S169: 49188.8 | T169: 8.51017301
A170: 2 | B170: CZ064 | C170: Jihomoravský | D170: 107600021 | E170: 600105181 | F170: Kořenec | G170: 16 | H170: 16 | I170: 0 | J170: 0 | K170: 1 | L170: 0 | M170: 16 | N170: 26676 | O170: 576201.6 | P170: 28000 | Q170: 130000 | R170: 578000 | S170: 1798.4 | T170: 0.3111418685
A171: 2 | B171: CZ064 | C171: Jihomoravský | D171: 107600595 | E171: 600105580 | F171: Borotín | G171: 16 | H171: 16 | I171: 0 | J171: 0 | K171: 1 | L171: 0 | M171: 16 | N171: 26676 | O171: 576201.6 | P171: 28000 | Q171: 130000 | R171: 578000 | S171: 1798.4 | T171: 0.3111418685
A172: 2 | B172: CZ064 | C172: Jihomoravský | D172: 107603462 | E172: 600109283 | F172: Kuřim | G172: 16 | H172: 16 | I172: 0 | J172: 0 | K172: 1 | L172: 0 | M172: 16 | N172: 26676 | O172: 576201.6 | P172: 28000 | Q172: 130000 | R172: 578000 | S172: 1798.4 | T172: 0.3111418685
A173: 2 | B173: CZ064 | C173: Jihomoravský | D173: 107614626 | E173: 600126528 | F173: Uherčice | G173: 16 | H173: 16 | I173: 0 | J173: 0 | K173: 1 | L173: 0 | M173: 16 | N173: 26676 | O173: 576201.6 | P173: 28000 | Q173: 130000 | R173: 578000 | S173: 1798.4 | T173: 0.3111418685
A174: 2 | B174: CZ064 | C174: Jihomoravský | D174: 107615231 | E174: 600127427 | F174: Starý Petřín | G174: 16 | H174: 16 | I174: 0 | J174: 0 | K174: 1 | L174: 0 | M174: 16 | N174: 26676 | O174: 576201.6 | P174: 28000 | Q174: 130000 | R174: 578000 | S174: 1798.4 | T174: 0.3111418685
A175: 2 | B175: CZ071 | C175: Olomoucký | D175: 107610191 | E175: 672000105 | F175: Mořice | G175: 16 | H175: 16 | I175: 0 | J175: 0 | K175: 1 | L175: 0 | M175: 16 | N175: 25018 | O175: 540388.8 | P175: 28000 | Q175: 130000 | R175: 578000 | S175: 37611.2 | T175: 6.507128028
A176: 2 | B176: CZ071 | C176: Olomoucký | D176: 108014037 | E176: 600148548 | F176: Kosov | G176: 16 | H176: 16 | I176: 0 | J176: 0 | K176: 1 | L176: 0 | M176: 16 | N176: 25018 | O176: 540388.8 | P176: 28000 | Q176: 130000 | R176: 578000 | S176: 37611.2 | T176: 6.507128028
A177: 2 | B177: CZ071 | C177: Olomoucký | D177: 120201666 | E177: 600146740 | F177: Jindřichov | G177: 16 | H177: 16 | I177: 0 | J177: 0 | K177: 1 | L177: 0 | M177: 16 | N177: 25018 | O177: 540388.8 | P177: 28000 | Q177: 130000 | R177: 578000 | S177: 37611.2 | T177: 6.507128028
A178: 2 | B178: CZ071 | C178: Olomoucký | D178: 181011930 | E178: 600141071 | F178: Olomouc | G178: 16 | H178: 16 | I178: 0 | J178: 0 | K178: 1 | L178: 0 | M178: 16 | N178: 25018 | O178: 540388.8 | P178: 28000 | Q178: 130000 | R178: 578000 | S178: 37611.2 | T178: 6.507128028
A179: 2 | B179: CZ072 | C179: Zlínský | D179: 120400642 | E179: 600149528 | F179: Valašská Senice | G179: 16 | H179: 16 | I179: 0 | J179: 0 | K179: 1 | L179: 0 | M179: 16 | N179: 26796 | O179: 578793.6 | P179: 28000 | Q179: 130000 | R179: 578000 | S179: -793.6 | T179: -0.1373010381
A180: 2 | B180: CZ080 | C180: Moravskoslezský | D180: 107629054 | E180: 600142965 | F180: Velké Heraltice | G180: 16 | H180: 16 | I180: 0 | J180: 0 | K180: 1 | L180: 0 | M180: 16 | N180: 29367 | O180: 634327.2 | P180: 28000 | Q180: 130000 | R180: 578000 | S180: -56327.2 | T180: -9.745190311
A181: 2 | B181: CZ080 | C181: Moravskoslezský | D181: 120004925 | E181: 600143139 | F181: Bělá | G181: 16 | H181: 16 | I181: 0 | J181: 0 | K181: 1 | L181: 0 | M181: 16 | N181: 29367 | O181: 634327.2 | P181: 28000 | Q181: 130000 | R181: 578000 | S181: -56327.2 | T181: -9.745190311
A182: 2 | B182: CZ080 | C182: Moravskoslezský | D182: 174103638 | E182: 600131092 | F182: Dívčí Hrad | G182: 16 | H182: 16 | I182: 0 | J182: 0 | K182: 1 | L182: 0 | M182: 16 | N182: 29367 | O182: 634327.2 | P182: 28000 | Q182: 130000 | R182: 578000 | S182: -56327.2 | T182: -9.745190311
A183: 2 | B183: CZ031 | C183: Jihočeský | D183: 107531879 | E183: 650040546 | F183: Rožmitál na Šumavě | G183: 17 | H183: 17 | I183: 0 | J183: 0 | K183: 1 | L183: 0 | M183: 17 | N183: 25775 | O183: 591536.25 | P183: 28000 | Q183: 130000 | R183: 606000 | S183: 14463.75 | T183: 2.386757426
A184: 2 | B184: CZ031 | C184: Jihočeský | D184: 107534321 | E184: 650043235 | F184: Svatá Maří | G184: 17 | H184: 17 | I184: 0 | J184: 0 | K184: 1 | L184: 0 | M184: 17 | N184: 25775 | O184: 591536.25 | P184: 28000 | Q184: 130000 | R184: 606000 | S184: 14463.75 | T184: 2.386757426
A185: 2 | B185: CZ031 | C185: Jihočeský | D185: 108053326 | E185: 600061663 | F185: Kostelec nad Vltavou | G185: 17 | H185: 17 | I185: 0 | J185: 0 | K185: 1 | L185: 0 | M185: 17 | N185: 25775 | O185: 591536.25 | P185: 28000 | Q185: 130000 | R185: 606000 | S185: 14463.75 | T185: 2.386757426
A186: 2 | B186: CZ032 | C186: Plzeňský | D186: 107540444 | E186: 600065260 | F186: Mezholezy (dříve okres Horšovský Týn) | G186: 17 | H186: 17 | I186: 0 | J186: 0 | K186: 1 | L186: 0 | M186: 17 | N186: 27930 | O186: 640993.5 | P186: 28000 | Q186: 130000 | R186: 606000 | S186: -34993.5 | T186: -5.77450495
A187: 2 | B187: CZ032 | C187: Plzeňský | D187: 107542722 | E187: 650032225 | F187: Chudenín | G187: 17 | H187: 17 | I187: 0 | J187: 0 | K187: 1 | L187: 0 | M187: 17 | N187: 27930 | O187: 640993.5 | P187: 28000 | Q187: 130000 | R187: 606000 | S187: -34993.5 | T187: -5.77450495
A188: 2 | B188: CZ032 | C188: Plzeňský | D188: 107546698 | E188: 600073947 | F188: Svojšín | G188: 17 | H188: 17 | I188: 0 | J188: 0 | K188: 1 | L188: 0 | M188: 17 | N188: 27930 | O188: 640993.5 | P188: 28000 | Q188: 130000 | R188: 606000 | S188: -34993.5 | T188: -5.77450495
A189: 2 | B189: CZ032 | C189: Plzeňský | D189: 181001519 | E189: 650031881 | F189: Líně | G189: 17 | H189: 0 | I189: 17 | J189: 0 | K189: 1 | L189: 0 | M189: 17 | N189: 27930 | O189: 320496.75 | P189: 28000 | Q189: 130000 | R189: 368000 | S189: 47503.25 | T189: 12.90849185
A190: 2 | B190: CZ032 | C190: Plzeňský | D190: 181009382 | E190: 600065367 | F190: Kdyně | G190: 17 | H190: 17 | I190: 0 | J190: 0 | K190: 1 | L190: 0 | M190: 17 | N190: 27930 | O190: 640993.5 | P190: 28000 | Q190: 130000 | R190: 606000 | S190: -34993.5 | T190: -5.77450495
A191: 2 | B191: CZ032 | C191: Plzeňský | D191: 181018349 | E191: 600071260 | F191: Kozolupy | G191: 17 | H191: 17 | I191: 0 | J191: 0 | K191: 1 | L191: 0 | M191: 17 | N191: 27930 | O191: 640993.5 | P191: 28000 | Q191: 130000 | R191: 606000 | S191: -34993.5 | T191: -5.77450495
A192: 2 | B192: CZ041 | C192: Karlovarský | D192: 107545667 | E192: 600072517 | F192: Šabina | G192: 17 | H192: 17 | I192: 0 | J192: 0 | K192: 1 | L192: 0 | M192: 17 | N192: 28414.37632 | O192: 652109.9366 | P192: 28000 | Q192: 130000 | R192: 606000 | S192: -46109.93658 | T192: -7.608900425
A193: 2 | B193: CZ042 | C193: Ústecký | D193: 107565901 | E193: 600080811 | F193: Terezín | G193: 17 | H193: 17 | I193: 0 | J193: 0 | K193: 1 | L193: 0 | M193: 17 | N193: 27948 | O193: 641406.6 | P193: 28000 | Q193: 130000 | R193: 606000 | S193: -35406.6 | T193: -5.842673267
A194: 2 | B194: CZ042 | C194: Ústecký | D194: 107566311 | E194: 600082776 | F194: Koštice | G194: 17 | H194: 17 | I194: 0 | J194: 0 | K194: 1 | L194: 0 | M194: 17 | N194: 27948 | O194: 641406.6 | P194: 28000 | Q194: 130000 | R194: 606000 | S194: -35406.6 | T194: -5.842673267
A195: 2 | B195: CZ042 | C195: Ústecký | D195: 116500743 | E195: 616500734 | F195: Chotiměř | G195: 17 | H195: 17 | I195: 0 | J195: 0 | K195: 1 | L195: 0 | M195: 17 | N195: 27948 | O195: 641406.6 | P195: 28000 | Q195: 130000 | R195: 606000 | S195: -35406.6 | T195: -5.842673267
A196: 2 | B196: CZ042 | C196: Ústecký | D196: 166100331 | E196: 600081567 | F196: Bechlín | G196: 17 | H196: 17 | I196: 0 | J196: 0 | K196: 1 | L196: 0 | M196: 17 | N196: 27948 | O196: 641406.6 | P196: 28000 | Q196: 130000 | R196: 606000 | S196: -35406.6 | T196: -5.842673267
A197: 2 | B197: CZ052 | C197: Královéhradecký | D197: 107583399 | E197: 668000929 | F197: Hejtmánkovice | G197: 17 | H197: 17 | I197: 0 | J197: 0 | K197: 1 | L197: 0 | M197: 17 | N197: 24643.65672 | O197: 565571.9216 | P197: 28000 | Q197: 130000 | R197: 606000 | S197: 40428.07836 | T197: 6.671300059
A198: 2 | B198: CZ052 | C198: Královéhradecký | D198: 107583844 | E198: 600094006 | F198: Police nad Metují | G198: 17 | H198: 17 | I198: 0 | J198: 0 | K198: 1 | L198: 0 | M198: 17 | N198: 24643.65672 | O198: 565571.9216 | P198: 28000 | Q198: 130000 | R198: 606000 | S198: 40428.07836 | T198: 6.671300059
A199: 2 | B199: CZ052 | C199: Královéhradecký | D199: 181020203 | E199: 650058798 | F199: Lánov | G199: 17 | H199: 17 | I199: 0 | J199: 0 | K199: 1 | L199: 0 | M199: 17 | N199: 24643.65672 | O199: 565571.9216 | P199: 28000 | Q199: 130000 | R199: 606000 | S199: 40428.07836 | T199: 6.671300059
A200: 2 | B200: CZ052 | C200: Královéhradecký | D200: 181031337 | E200: 650047087 | F200: Deštné v Orlických horách | G200: 17 | H200: 17 | I200: 0 | J200: 0 | K200: 1 | L200: 0 | M200: 17 | N200: 24643.65672 | O200: 565571.9216 | P200: 28000 | Q200: 130000 | R200: 606000 | S200: 40428.07836 | T200: 6.671300059
... 4300 more rows
